[Event "Titled Tuesday Blitz May 23 Early 2023"]
[White "Tokman, Ariel"]
[Black "Ziatdinov, Raset"]
[WhiteFideId "117420"]
[BlackFideId "2015323"]
[WhiteElo "2263"]
[BlackElo "2220"]
[Result "1-0"]
[Round "10"]
[TimeControl "180+2"]
[Date "2023.05.23"]
[WhiteClock "0:00:51"]
[BlackClock "0:00:01"]

1. c4 {[%clk 0:03:00]}  Nf6 {[%clk 0:02:56]} 2. g3 {[%clk 0:03:01]}  g6 {[%clk 0:02:57]} 3. Bg2 {[%clk 0:03:01]}  Bg7 {[%clk 0:02:58]} 4. Nf3 {[%clk 0:03:02]}  O-O {[%clk 0:02:58]} 5. O-O {[%clk 0:03:03]}  d6 {[%clk 0:02:59]} 6. Nc3 {[%clk 0:03:03]}  Nc6 {[%clk 0:03:00]} 7. d3 {[%clk 0:03:03]}  e5 {[%clk 0:03:00]} 8. Rb1 {[%clk 0:03:03]}  Nh5 {[%clk 0:02:55]} 9. b4 {[%clk 0:03:02]}  f5 {[%clk 0:02:54]} 10. b5 {[%clk 0:03:02]}  Ne7 {[%clk 0:02:54]} 11. Qc2 {[%clk 0:03:03]}  f4 {[%clk 0:02:54]} 12. a4 {[%clk 0:03:00]}  h6 {[%clk 0:02:49]} 13. Ba3 {[%clk 0:02:56]}  g5 {[%clk 0:02:14]} 14. Nd2 {[%clk 0:02:45]}  Nf5 {[%clk 0:01:56]} 15. a5 {[%clk 0:02:36]}  Nd4 {[%clk 0:01:42]} 16. Qd1 {[%clk 0:02:36]}  g4 {[%clk 0:01:10]} 17. e3 {[%clk 0:01:56]}  f3 {[%clk 0:00:46]} 18. exd4 {[%clk 0:01:56]}  fxg2 {[%clk 0:00:46]} 19. Kxg2 {[%clk 0:01:56]}  exd4 {[%clk 0:00:46]} 20. Nce4 {[%clk 0:01:57]}  Nf6 {[%clk 0:00:43]} 21. Bb2 {[%clk 0:01:48]}  Bf5 {[%clk 0:00:37]} 22. Bxd4 {[%clk 0:01:39]}  Nxe4 {[%clk 0:00:30]} 23. dxe4 {[%clk 0:01:37]}  Bxd4 {[%clk 0:00:21]} 24. exf5 {[%clk 0:01:36]}  Qg5 {[%clk 0:00:12]} 25. Ne4 {[%clk 0:01:33]}  Qg7 {[%clk 0:00:12]} 26. f4 {[%clk 0:01:20]}  gxf3+ {[%clk 0:00:11]} 27. Qxf3 {[%clk 0:01:19]}  Rae8 {[%clk 0:00:11]} 28. Rbe1 {[%clk 0:01:17]}  Re5 {[%clk 0:00:09]} 29. f6 {[%clk 0:01:16]}  Qf7 {[%clk 0:00:09]} 30. Qg4+ {[%clk 0:01:15]}  Kh7 {[%clk 0:00:09]} 31. Nxd6 {[%clk 0:01:04]}  cxd6 {[%clk 0:00:06]} 32. Qxd4 {[%clk 0:01:03]}  Rxe1 {[%clk 0:00:06]} 33. Rxe1 {[%clk 0:01:03]}  Qxf6 {[%clk 0:00:04]} 34. Qxf6 {[%clk 0:01:01]}  Rxf6 {[%clk 0:00:05]} 35. Re7+ {[%clk 0:01:01]}  Kg6 {[%clk 0:00:06]} 36. Rxb7 {[%clk 0:01:02]}  Re6 {[%clk 0:00:02]} 37. Rxa7 {[%clk 0:01:01]}  Re2+ {[%clk 0:00:03]} 38. Kf3 {[%clk 0:01:00]}  Rc2 {[%clk 0:00:04]} 39. Rc7 {[%clk 0:00:59]}  d5 {[%clk 0:00:01]} 40. b6 {[%clk 0:01:00]}  dxc4 {[%clk 0:00:01]} 41. b7 {[%clk 0:01:00]}  Rb2 {[%clk 0:00:02]} 42. a6 {[%clk 0:00:59]}  Rb3+ {[%clk 0:00:02]} 43. Ke4 {[%clk 0:00:59]}  c3 {[%clk 0:00:03]} 44. a7 {[%clk 0:00:58]}  Ra3 {[%clk 0:00:03]} 45. b8=Q {[%clk 0:00:57]}  c2 {[%clk 0:00:03]} 46. Qb6+ {[%clk 0:00:55]}  Kh5 {[%clk 0:00:01]} 47. Rc5+ {[%clk 0:00:55]}  Kg4 {[%clk 0:00:01]} 48. Qe6# {[%clk 0:00:51]} 1-0


[Site "https://www.chess.com"]

[Event "Titled Tuesday Blitz May 23 Early 2023"]
[White "Reprintsev, Alexander"]
[Black "Gutkin, Ilya"]
[WhiteFideId "14100541"]
[BlackFideId "16203470"]
[WhiteElo "2218"]
[BlackElo "2265"]
[Result "1-0"]
[Round "10"]
[TimeControl "180+2"]
[Date "2023.05.23"]
[WhiteClock "0:00:40"]
[BlackClock "0:00:00"]

1. e4 {[%clk 0:03:00]}  e6 {[%clk 0:02:58]} 2. d4 {[%clk 0:02:59]}  d5 {[%clk 0:02:58]} 3. Nc3 {[%clk 0:02:59]}  Nf6 {[%clk 0:02:56]} 4. Bg5 {[%clk 0:02:58]}  dxe4 {[%clk 0:02:54]} 5. Nxe4 {[%clk 0:02:57]}  Be7 {[%clk 0:02:55]} 6. Bxf6 {[%clk 0:02:56]}  gxf6 {[%clk 0:02:54]} 7. Nc3 {[%clk 0:02:55]}  c5 {[%clk 0:02:54]} 8. Bb5+ {[%clk 0:02:48]}  Bd7 {[%clk 0:02:53]} 9. dxc5 {[%clk 0:02:44]}  Bxb5 {[%clk 0:02:48]} 10. Qxd8+ {[%clk 0:02:43]}  Kxd8 {[%clk 0:02:47]} 11. Nxb5 {[%clk 0:02:44]}  Bxc5 {[%clk 0:02:42]} 12. O-O-O+ {[%clk 0:02:40]}  Kc8 {[%clk 0:02:42]} 13. Nd6+ {[%clk 0:02:37]}  Bxd6 {[%clk 0:02:42]} 14. Rxd6 {[%clk 0:02:38]}  Kc7 {[%clk 0:02:39]} 15. Rd3 {[%clk 0:02:38]}  Nc6 {[%clk 0:02:38]} 16. Rg3 {[%clk 0:02:33]}  Rhg8 {[%clk 0:02:35]} 17. Nf3 {[%clk 0:02:33]}  Rad8 {[%clk 0:02:25]} 18. c3 {[%clk 0:02:32]}  h6 {[%clk 0:02:16]} 19. Re1 {[%clk 0:02:29]}  f5 {[%clk 0:02:11]} 20. Kc2 {[%clk 0:02:27]}  f4 {[%clk 0:02:06]} 21. Rxg8 {[%clk 0:02:27]}  Rxg8 {[%clk 0:02:07]} 22. g3 {[%clk 0:02:25]}  fxg3 {[%clk 0:02:00]} 23. hxg3 {[%clk 0:02:26]}  Kd6 {[%clk 0:01:50]} 24. Re4 {[%clk 0:02:24]}  f5 {[%clk 0:01:44]} 25. Rh4 {[%clk 0:02:24]}  Rg6 {[%clk 0:01:44]} 26. b4 {[%clk 0:02:23]}  e5 {[%clk 0:01:39]} 27. b5 {[%clk 0:02:09]}  Ne7 {[%clk 0:01:36]} 28. Ra4 {[%clk 0:02:07]}  Nc8 {[%clk 0:01:32]} 29. Nh4 {[%clk 0:01:47]}  Rf6 {[%clk 0:01:31]} 30. Kd3 {[%clk 0:01:43]}  Kc5 {[%clk 0:01:26]} 31. Rb4 {[%clk 0:01:40]}  Nb6 {[%clk 0:01:10]} 32. Rb1 {[%clk 0:01:38]}  e4+ {[%clk 0:01:03]} 33. Ke2 {[%clk 0:01:35]}  f4 {[%clk 0:01:02]} 34. Rb4 {[%clk 0:01:27]}  f3+ {[%clk 0:00:53]} 35. Ke1 {[%clk 0:01:16]}  Nd5 {[%clk 0:00:45]} 36. Rxe4 {[%clk 0:01:14]}  Nxc3 {[%clk 0:00:45]} 37. Re5+ {[%clk 0:01:12]}  Kd4 {[%clk 0:00:42]} 38. Rf5 {[%clk 0:01:10]}  Rxf5 {[%clk 0:00:25]} 39. Nxf5+ {[%clk 0:01:10]}  Ke4 {[%clk 0:00:25]} 40. Nxh6 {[%clk 0:01:08]}  Nxa2 {[%clk 0:00:22]} 41. Kd2 {[%clk 0:01:07]}  Nb4 {[%clk 0:00:18]} 42. Nf7 {[%clk 0:01:06]}  Nd5 {[%clk 0:00:16]} 43. Nd6+ {[%clk 0:01:05]}  Kd4 {[%clk 0:00:15]} 44. Nxb7 {[%clk 0:01:03]}  Kc4 {[%clk 0:00:15]} 45. Nd6+ {[%clk 0:00:53]}  Kc5 {[%clk 0:00:15]} 46. Ne4+ {[%clk 0:00:52]}  Kxb5 {[%clk 0:00:15]} 47. Ng5 {[%clk 0:00:53]}  a5 {[%clk 0:00:08]} 48. Nxf3 {[%clk 0:00:53]}  Nf6 {[%clk 0:00:08]} 49. Ne5 {[%clk 0:00:47]}  Ne4+ {[%clk 0:00:06]} 50. Ke3 {[%clk 0:00:47]}  Nd6 {[%clk 0:00:03]} 51. g4 {[%clk 0:00:47]}  a4 {[%clk 0:00:03]} 52. Nd3 {[%clk 0:00:44]}  a3 {[%clk 0:00:03]} 53. Nc1 {[%clk 0:00:44]}  Kc4 {[%clk 0:00:02]} 54. Kd2 {[%clk 0:00:43]}  Ne4+ {[%clk 0:00:02]} 55. Ke3 {[%clk 0:00:44]}  Ng5 {[%clk 0:00:01]} 56. f4 {[%clk 0:00:43]}  Ne6 {[%clk 0:00:02]} 57. f5 {[%clk 0:00:43]}  Nc5 {[%clk 0:00:01]} 58. g5 {[%clk 0:00:43]}  Kd5 {[%clk 0:00:02]} 59. Kf4 {[%clk 0:00:40]}  Nd3+ {[%clk 0:00:02]} 60. Nxd3 {[%clk 0:00:40]}  a2 {[%clk 0:00:00]} 61. Nb4+ {[%clk 0:00:40]} 1-0


[Site "https://www.chess.com"]

[Event "Titled Tuesday Blitz May 23 Early 2023"]
[White "Estrada Nieto, Julian"]
[Black "Zaichenko, Daria"]
[WhiteFideId "5101018"]
[BlackFideId "4197453"]
[WhiteElo "2161"]
[BlackElo "2039"]
[Result "1-0"]
[Round "10"]
[TimeControl "180+2"]
[Date "2023.05.23"]
[WhiteClock "0:01:11"]
[BlackClock "0:02:07"]

1. e4 {[%clk 0:02:41]}  c5 {[%clk 0:02:59]} 2. Nf3 {[%clk 0:02:40]}  Nc6 {[%clk 0:02:59]} 3. Bb5 {[%clk 0:02:41]}  g6 {[%clk 0:02:57]} 4. Bxc6 {[%clk 0:02:41]}  bxc6 {[%clk 0:02:56]} 5. O-O {[%clk 0:02:41]}  Bg7 {[%clk 0:02:56]} 6. Re1 {[%clk 0:02:35]}  Nf6 {[%clk 0:02:52]} 7. e5 {[%clk 0:02:34]}  Nd5 {[%clk 0:02:52]} 8. d4 {[%clk 0:02:24]}  cxd4 {[%clk 0:02:51]} 9. Qxd4 {[%clk 0:02:24]}  O-O {[%clk 0:02:51]} 10. Nc3 {[%clk 0:02:20]}  Nxc3 {[%clk 0:02:48]} 11. Qxc3 {[%clk 0:02:17]}  Bb7 {[%clk 0:02:44]} 12. Bf4 {[%clk 0:02:11]}  d6 {[%clk 0:02:43]} 13. Rad1 {[%clk 0:02:07]}  Qb6 {[%clk 0:02:41]} 14. Qb3 {[%clk 0:02:00]}  d5 {[%clk 0:02:37]} 15. Be3 {[%clk 0:01:56]}  c5 {[%clk 0:02:34]} 16. Bxc5 {[%clk 0:01:33]}  Qxc5 {[%clk 0:02:28]} 17. Qxb7 {[%clk 0:01:33]}  Qxc2 {[%clk 0:02:29]} 18. Rd2 {[%clk 0:01:23]}  Qa4 {[%clk 0:02:14]} 19. b3 {[%clk 0:01:17]}  Qa3 {[%clk 0:02:13]} 20. Qxd5 {[%clk 0:01:16]}  Rfd8 {[%clk 0:02:12]} 21. Qe4 {[%clk 0:01:12]}  Rxd2 {[%clk 0:02:07]} 22. Qxa8+ {[%clk 0:01:11]} 1-0


[Site "https://www.chess.com"]

[Event "Titled Tuesday Blitz May 23 Early 2023"]
[White "Schnaider, Ilan"]
[Black "Golubev, Mikhail"]
[WhiteFideId "169013"]
[BlackFideId "14100983"]
[WhiteElo "2224"]
[BlackElo "2374"]
[Result "1-0"]
[Round "10"]
[TimeControl "180+2"]
[Date "2023.05.23"]
[WhiteClock "0:00:09"]
[BlackClock "0:00:00"]

1. e4 {[%clk 0:03:00]}  c5 {[%clk 0:02:59]} 2. Nf3 {[%clk 0:03:01]}  d6 {[%clk 0:02:59]} 3. Bb5+ {[%clk 0:03:01]}  Bd7 {[%clk 0:02:59]} 4. Bxd7+ {[%clk 0:02:59]}  Nxd7 {[%clk 0:03:00]} 5. O-O {[%clk 0:02:57]}  Ngf6 {[%clk 0:03:00]} 6. Re1 {[%clk 0:02:57]}  e6 {[%clk 0:03:00]} 7. c4 {[%clk 0:02:57]}  Ne5 {[%clk 0:02:49]} 8. b3 {[%clk 0:02:38]}  Nxf3+ {[%clk 0:02:22]} 9. Qxf3 {[%clk 0:02:37]}  Be7 {[%clk 0:02:21]} 10. Bb2 {[%clk 0:02:37]}  O-O {[%clk 0:02:21]} 11. d4 {[%clk 0:02:37]}  cxd4 {[%clk 0:02:17]} 12. Bxd4 {[%clk 0:02:38]}  d5 {[%clk 0:02:02]} 13. cxd5 {[%clk 0:02:37]}  exd5 {[%clk 0:02:03]} 14. e5 {[%clk 0:02:36]}  Ne4 {[%clk 0:02:03]} 15. Nc3 {[%clk 0:02:29]}  Ng5 {[%clk 0:01:59]} 16. Qg3 {[%clk 0:02:28]}  Ne6 {[%clk 0:01:58]} 17. Rad1 {[%clk 0:02:27]}  Rc8 {[%clk 0:01:54]} 18. Ne2 {[%clk 0:02:24]}  Qa5 {[%clk 0:01:49]} 19. f4 {[%clk 0:02:10]}  Bb4 {[%clk 0:01:41]} 20. Rf1 {[%clk 0:02:01]}  Rc2 {[%clk 0:01:33]} 21. f5 {[%clk 0:01:29]}  Rxe2 {[%clk 0:01:32]} 22. fxe6 {[%clk 0:01:30]}  fxe6 {[%clk 0:01:32]} 23. Qg4 {[%clk 0:01:30]}  Qxa2 {[%clk 0:00:21]} 24. Rxf8+ {[%clk 0:01:14]}  Bxf8 {[%clk 0:00:22]} 25. Rf1 {[%clk 0:01:07]}  h6 {[%clk 0:00:12]} 26. Qxe6+ {[%clk 0:01:05]}  Kh7 {[%clk 0:00:11]} 27. Qf5+ {[%clk 0:00:57]}  g6 {[%clk 0:00:10]} 28. Qf3 {[%clk 0:00:42]}  Bg7 {[%clk 0:00:09]} 29. Qxd5 {[%clk 0:00:43]}  Qd2 {[%clk 0:00:07]} 30. Kh1 {[%clk 0:00:34]}  Qd3 {[%clk 0:00:04]} 31. Qc4 {[%clk 0:00:19]}  Qxc4 {[%clk 0:00:03]} 32. bxc4 {[%clk 0:00:20]}  Bxe5 {[%clk 0:00:04]} 33. Bxa7 {[%clk 0:00:17]}  Rc2 {[%clk 0:00:04]} 34. c5 {[%clk 0:00:16]}  Bd4 {[%clk 0:00:03]} 35. g3 {[%clk 0:00:12]}  Kg7 {[%clk 0:00:03]} 36. Rd1 {[%clk 0:00:10]}  Bxc5 {[%clk 0:00:03]} 37. Rd7+ {[%clk 0:00:10]}  Kf6 {[%clk 0:00:03]} 38. Rc7 {[%clk 0:00:10]}  Rc1+ {[%clk 0:00:02]} 39. Kg2 {[%clk 0:00:11]}  Be3 {[%clk 0:00:02]} 40. Rxb7 {[%clk 0:00:08]}  Bxa7 {[%clk 0:00:00]} 41. Rxa7 {[%clk 0:00:09]} 1-0


[Site "https://www.chess.com"]

[Event "Titled Tuesday Blitz May 23 Early 2023"]
[White "Bodnaruk, Anastasia"]
[Black "Fernandez Siles, Luis"]
[WhiteFideId "4181751"]
[BlackFideId "2209420"]
[WhiteElo "2304"]
[BlackElo "2195"]
[Result "0-1"]
[Round "10"]
[TimeControl "180+2"]
[Date "2023.05.23"]
[WhiteClock "0:01:28"]
[BlackClock "0:00:27"]

1. e4 {[%clk 0:02:57]}  c5 {[%clk 0:02:59]} 2. Nc3 {[%clk 0:02:56]}  Nc6 {[%clk 0:02:59]} 3. Bb5 {[%clk 0:02:57]}  Nd4 {[%clk 0:02:59]} 4. Bc4 {[%clk 0:02:57]}  g6 {[%clk 0:02:59]} 5. Nf3 {[%clk 0:02:56]}  Bg7 {[%clk 0:02:59]} 6. Nxd4 {[%clk 0:02:56]}  cxd4 {[%clk 0:03:00]} 7. Qf3 {[%clk 0:02:56]}  Nh6 {[%clk 0:02:55]} 8. Ne2 {[%clk 0:02:56]}  O-O {[%clk 0:02:45]} 9. d3 {[%clk 0:02:53]}  Ng4 {[%clk 0:02:39]} 10. Qg3 {[%clk 0:02:48]}  d6 {[%clk 0:02:30]} 11. f4 {[%clk 0:02:42]}  Qa5+ {[%clk 0:02:01]} 12. Bd2 {[%clk 0:02:42]}  Qb6 {[%clk 0:01:52]} 13. Bb3 {[%clk 0:02:40]}  a5 {[%clk 0:01:35]} 14. a4 {[%clk 0:02:36]}  Ne3 {[%clk 0:01:27]} 15. h4 {[%clk 0:02:16]}  Be6 {[%clk 0:01:16]} 16. Bxe3 {[%clk 0:01:59]}  dxe3 {[%clk 0:01:14]} 17. Bxe6 {[%clk 0:01:45]}  fxe6 {[%clk 0:01:04]} 18. h5 {[%clk 0:01:45]}  Qxb2 {[%clk 0:00:56]} 19. Rd1 {[%clk 0:01:45]}  Qxc2 {[%clk 0:00:41]} 20. hxg6 {[%clk 0:01:39]}  hxg6 {[%clk 0:00:40]} 21. Qxe3 {[%clk 0:01:34]}  Bc3+ {[%clk 0:00:27]} 22. Kf1 {[%clk 0:01:28]}  Qxd1+ {[%clk 0:00:27]} 0-1


[Site "https://www.chess.com"]

[Event "Titled Tuesday Blitz May 23 Early 2023"]
[White "Kabilov, Amin"]
[Black "Toncheva, Nadya"]
[WhiteFideId "14700859"]
[BlackFideId "2924056"]
[WhiteElo "2110"]
[BlackElo "2101"]
[Result "0-1"]
[Round "10"]
[TimeControl "180+2"]
[Date "2023.05.23"]
[WhiteClock "0:00:14"]
[BlackClock "0:01:22"]

1. Nf3 {[%clk 0:03:00]}  c5 {[%clk 0:02:59]} 2. c4 {[%clk 0:02:59]}  Nc6 {[%clk 0:02:59]} 3. Nc3 {[%clk 0:02:59]}  e5 {[%clk 0:02:57]} 4. g3 {[%clk 0:02:58]}  g6 {[%clk 0:02:57]} 5. Bg2 {[%clk 0:02:58]}  Bg7 {[%clk 0:02:58]} 6. O-O {[%clk 0:02:58]}  Nge7 {[%clk 0:02:59]} 7. Ne1 {[%clk 0:02:58]}  O-O {[%clk 0:02:54]} 8. Nc2 {[%clk 0:02:58]}  d6 {[%clk 0:02:51]} 9. Ne3 {[%clk 0:02:58]}  a6 {[%clk 0:02:50]} 10. d3 {[%clk 0:02:53]}  Rb8 {[%clk 0:02:49]} 11. a4 {[%clk 0:02:53]}  a5 {[%clk 0:02:49]} 12. Ncd5 {[%clk 0:02:51]}  f5 {[%clk 0:02:48]} 13. Nxe7+ {[%clk 0:02:47]}  Nxe7 {[%clk 0:02:46]} 14. Nd5 {[%clk 0:02:46]}  Nxd5 {[%clk 0:02:46]} 15. Bxd5+ {[%clk 0:02:47]}  Kh8 {[%clk 0:02:46]} 16. f4 {[%clk 0:02:39]}  Qe7 {[%clk 0:02:42]} 17. e4 {[%clk 0:02:38]}  fxe4 {[%clk 0:02:38]} 18. dxe4 {[%clk 0:02:37]}  Bh3 {[%clk 0:02:36]} 19. Be3 {[%clk 0:02:01]}  Bxf1 {[%clk 0:02:33]} 20. Qxf1 {[%clk 0:01:59]}  exf4 {[%clk 0:02:33]} 21. gxf4 {[%clk 0:01:56]}  Qh4 {[%clk 0:02:25]} 22. Qf3 {[%clk 0:01:36]}  b6 {[%clk 0:02:17]} 23. Rf1 {[%clk 0:01:24]}  Bxb2 {[%clk 0:02:06]} 24. Kh1 {[%clk 0:01:22]}  Bg7 {[%clk 0:02:04]} 25. Rg1 {[%clk 0:01:14]}  Be5 {[%clk 0:01:40]} 26. Rf1 {[%clk 0:01:04]}  g5 {[%clk 0:01:39]} 27. fxe5 {[%clk 0:00:40]}  Rxf3 {[%clk 0:01:37]} 28. Rxf3 {[%clk 0:00:41]}  dxe5 {[%clk 0:01:31]} 29. Bd2 {[%clk 0:00:39]}  Qg4 {[%clk 0:01:26]} 30. Rf1 {[%clk 0:00:25]}  Qe2 {[%clk 0:01:23]} 31. Bc3 {[%clk 0:00:14]}  Qxf1# {[%clk 0:01:22]} 0-1


[Site "https://www.chess.com"]

[Event "Titled Tuesday Blitz May 23 Early 2023"]
[White "Smiechu"]
[Black "Yelisieiev, Yevhenii"]
[BlackFideId "14139642"]
[WhiteElo "2330"]
[BlackElo "2403"]
[Result "1-0"]
[Round "10"]
[TimeControl "180+2"]
[Date "2023.05.23"]
[WhiteClock "0:00:12"]
[BlackClock "0:00:00"]

1. e4 {[%clk 0:02:55]}  d5 {[%clk 0:03:00]} 2. exd5 {[%clk 0:02:47]}  Qxd5 {[%clk 0:02:58]} 3. Nf3 {[%clk 0:02:46]}  Nf6 {[%clk 0:02:50]} 4. d4 {[%clk 0:02:46]}  Bf5 {[%clk 0:02:42]} 5. c4 {[%clk 0:02:45]}  Qd8 {[%clk 0:02:40]} 6. Nc3 {[%clk 0:02:45]}  e6 {[%clk 0:02:40]} 7. Bd3 {[%clk 0:02:41]}  Bxd3 {[%clk 0:02:37]} 8. Qxd3 {[%clk 0:02:41]}  Be7 {[%clk 0:02:27]} 9. O-O {[%clk 0:02:40]}  O-O {[%clk 0:02:28]} 10. Bf4 {[%clk 0:02:40]}  Nbd7 {[%clk 0:02:01]} 11. Rad1 {[%clk 0:02:40]}  Nb6 {[%clk 0:01:55]} 12. Rfe1 {[%clk 0:02:38]}  Re8 {[%clk 0:01:27]} 13. b3 {[%clk 0:02:25]}  Qd7 {[%clk 0:01:24]} 14. Ne5 {[%clk 0:02:25]}  Qc8 {[%clk 0:01:12]} 15. Qh3 {[%clk 0:02:19]}  Nbd7 {[%clk 0:00:54]} 16. Nf3 {[%clk 0:02:01]}  c6 {[%clk 0:00:49]} 17. Ng5 {[%clk 0:01:56]}  Nf8 {[%clk 0:00:48]} 18. Nce4 {[%clk 0:01:55]}  Nxe4 {[%clk 0:00:45]} 19. Nxe4 {[%clk 0:01:46]}  Ng6 {[%clk 0:00:41]} 20. Bg3 {[%clk 0:01:42]}  Rd8 {[%clk 0:00:40]} 21. c5 {[%clk 0:01:38]}  Rd5 {[%clk 0:00:34]} 22. Bd6 {[%clk 0:01:35]}  Qd8 {[%clk 0:00:29]} 23. Qf3 {[%clk 0:01:33]}  Rf5 {[%clk 0:00:26]} 24. Qg3 {[%clk 0:01:26]}  Bh4 {[%clk 0:00:22]} 25. Qc3 {[%clk 0:01:20]}  Nf4 {[%clk 0:00:19]} 26. Bxf4 {[%clk 0:01:16]}  Rxf4 {[%clk 0:00:19]} 27. g3 {[%clk 0:01:09]}  Rg4 {[%clk 0:00:19]} 28. f3 {[%clk 0:01:06]}  Rg6 {[%clk 0:00:19]} 29. Kf2 {[%clk 0:00:51]}  Be7 {[%clk 0:00:18]} 30. f4 {[%clk 0:00:49]}  Qd5 {[%clk 0:00:18]} 31. Qc4 {[%clk 0:00:47]}  Qd7 {[%clk 0:00:17]} 32. b4 {[%clk 0:00:44]}  a6 {[%clk 0:00:16]} 33. a4 {[%clk 0:00:44]}  h5 {[%clk 0:00:16]} 34. h4 {[%clk 0:00:40]}  Kh7 {[%clk 0:00:08]} 35. Qd3 {[%clk 0:00:37]}  Kg8 {[%clk 0:00:08]} 36. Qf3 {[%clk 0:00:37]}  Qd5 {[%clk 0:00:07]} 37. Nc3 {[%clk 0:00:36]}  Qxf3+ {[%clk 0:00:07]} 38. Kxf3 {[%clk 0:00:36]}  Rd8 {[%clk 0:00:08]} 39. b5 {[%clk 0:00:34]}  axb5 {[%clk 0:00:05]} 40. axb5 {[%clk 0:00:35]}  cxb5 {[%clk 0:00:05]} 41. Nxb5 {[%clk 0:00:35]}  Rf6 {[%clk 0:00:04]} 42. Re5 {[%clk 0:00:34]}  Rf5 {[%clk 0:00:04]} 43. Rxf5 {[%clk 0:00:34]}  exf5 {[%clk 0:00:05]} 44. Re1 {[%clk 0:00:33]}  Bf6 {[%clk 0:00:04]} 45. Rd1 {[%clk 0:00:30]}  Be7 {[%clk 0:00:05]} 46. Nc3 {[%clk 0:00:24]}  Ra8 {[%clk 0:00:04]} 47. Nd5 {[%clk 0:00:22]}  Bd8 {[%clk 0:00:04]} 48. Rb1 {[%clk 0:00:21]}  Ra3+ {[%clk 0:00:04]} 49. Kg2 {[%clk 0:00:20]}  Ra2+ {[%clk 0:00:04]} 50. Kh3 {[%clk 0:00:20]}  Rd2 {[%clk 0:00:03]} 51. Rb4 {[%clk 0:00:19]}  g6 {[%clk 0:00:02]} 52. Ne3 {[%clk 0:00:16]}  Bf6 {[%clk 0:00:00]} 53. Nf1 {[%clk 0:00:12]} 1-0


[Site "https://www.chess.com"]

[Event "Titled Tuesday Blitz May 23 Early 2023"]
[White "Todorovic, Bojan"]
[Black "Hajiyev, Kanan"]
[WhiteFideId "917087"]
[BlackFideId "13404148"]
[WhiteElo "2266"]
[BlackElo "2103"]
[Result "1-0"]
[Round "10"]
[TimeControl "180+2"]
[Date "2023.05.23"]
[WhiteClock "0:00:27"]
[BlackClock "0:00:18"]

1. d4 {[%clk 0:02:58]}  Nf6 {[%clk 0:02:47]} 2. c4 {[%clk 0:02:57]}  e6 {[%clk 0:02:47]} 3. Nf3 {[%clk 0:02:56]}  b6 {[%clk 0:02:45]} 4. a3 {[%clk 0:02:53]}  d5 {[%clk 0:02:42]} 5. Nc3 {[%clk 0:02:49]}  Bb7 {[%clk 0:02:36]} 6. Bg5 {[%clk 0:02:45]}  Be7 {[%clk 0:02:34]} 7. e3 {[%clk 0:02:38]}  O-O {[%clk 0:02:33]} 8. Rc1 {[%clk 0:02:24]}  h6 {[%clk 0:02:31]} 9. Bxf6 {[%clk 0:02:23]}  Bxf6 {[%clk 0:02:32]} 10. cxd5 {[%clk 0:02:23]}  exd5 {[%clk 0:02:31]} 11. b4 {[%clk 0:02:19]}  c5 {[%clk 0:02:26]} 12. bxc5 {[%clk 0:02:10]}  bxc5 {[%clk 0:02:27]} 13. dxc5 {[%clk 0:02:10]}  Qa5 {[%clk 0:02:18]} 14. Qd2 {[%clk 0:02:10]}  Na6 {[%clk 0:02:11]} 15. Nb5 {[%clk 0:01:44]}  Qa4 {[%clk 0:01:55]} 16. Nd6 {[%clk 0:01:35]}  Bc6 {[%clk 0:01:43]} 17. Be2 {[%clk 0:01:13]}  Rab8 {[%clk 0:01:35]} 18. O-O {[%clk 0:01:12]}  Rb2 {[%clk 0:01:35]} 19. Qd3 {[%clk 0:00:59]}  Rb3 {[%clk 0:01:20]} 20. Qxa6 {[%clk 0:00:57]}  Rxa3 {[%clk 0:00:50]} 21. Qxa4 {[%clk 0:00:56]}  Rxa4 {[%clk 0:00:50]} 22. Bb5 {[%clk 0:00:55]}  Bxb5 {[%clk 0:00:49]} 23. Nxb5 {[%clk 0:00:55]}  Rc8 {[%clk 0:00:48]} 24. Nbd4 {[%clk 0:00:54]}  a5 {[%clk 0:00:45]} 25. c6 {[%clk 0:00:54]}  Rc4 {[%clk 0:00:45]} 26. Rxc4 {[%clk 0:00:52]}  dxc4 {[%clk 0:00:45]} 27. Rc1 {[%clk 0:00:50]}  Kf8 {[%clk 0:00:43]} 28. Rxc4 {[%clk 0:00:49]}  Ke7 {[%clk 0:00:44]} 29. h4 {[%clk 0:00:49]}  Kd6 {[%clk 0:00:43]} 30. Ra4 {[%clk 0:00:49]}  Ra8 {[%clk 0:00:43]} 31. Kh2 {[%clk 0:00:47]}  h5 {[%clk 0:00:40]} 32. Kg3 {[%clk 0:00:46]}  Kc5 {[%clk 0:00:41]} 33. Kf4 {[%clk 0:00:43]}  g6 {[%clk 0:00:40]} 34. c7 {[%clk 0:00:40]}  Kd6 {[%clk 0:00:33]} 35. Nb5+ {[%clk 0:00:38]}  Kd7 {[%clk 0:00:31]} 36. Nfd4 {[%clk 0:00:34]}  Ra6 {[%clk 0:00:25]} 37. g3 {[%clk 0:00:32]}  Kc8 {[%clk 0:00:23]} 38. Ke4 {[%clk 0:00:31]}  Kd7 {[%clk 0:00:23]} 39. Kd3 {[%clk 0:00:31]}  Kc8 {[%clk 0:00:23]} 40. Kc4 {[%clk 0:00:31]}  Kb7 {[%clk 0:00:23]} 41. Kd5 {[%clk 0:00:30]}  Kc8 {[%clk 0:00:22]} 42. Rc4 {[%clk 0:00:28]}  a4 {[%clk 0:00:22]} 43. Nd6+ {[%clk 0:00:28]}  Rxd6+ {[%clk 0:00:20]} 44. Kxd6 {[%clk 0:00:28]}  a3 {[%clk 0:00:20]} 45. Ra4 {[%clk 0:00:27]}  Kb7 {[%clk 0:00:18]} 46. Kd7 {[%clk 0:00:27]} 1-0


[Site "https://www.chess.com"]

[Event "Titled Tuesday Blitz May 23 Early 2023"]
[White "Berezin, Viktor"]
[Black "Buscar, Michael"]
[WhiteFideId "14107872"]
[BlackFideId "2603616"]
[WhiteElo "2310"]
[BlackElo "2010"]
[Result "1-0"]
[Round "10"]
[TimeControl "180+2"]
[Date "2023.05.23"]
[WhiteClock "0:00:10"]
[BlackClock "0:00:12"]

1. d4 {[%clk 0:02:57]}  Nf6 {[%clk 0:02:57]} 2. Nf3 {[%clk 0:02:55]}  e6 {[%clk 0:02:56]} 3. c4 {[%clk 0:02:54]}  c5 {[%clk 0:02:55]} 4. d5 {[%clk 0:02:55]}  exd5 {[%clk 0:02:55]} 5. cxd5 {[%clk 0:02:55]}  d6 {[%clk 0:02:56]} 6. Nc3 {[%clk 0:02:55]}  g6 {[%clk 0:02:55]} 7. g3 {[%clk 0:02:55]}  Bg7 {[%clk 0:02:55]} 8. Bg2 {[%clk 0:02:56]}  O-O {[%clk 0:02:56]} 9. O-O {[%clk 0:02:57]}  Na6 {[%clk 0:02:51]} 10. Bf4 {[%clk 0:02:52]}  Nc7 {[%clk 0:02:50]} 11. e4 {[%clk 0:02:49]}  b5 {[%clk 0:02:50]} 12. e5 {[%clk 0:02:46]}  dxe5 {[%clk 0:02:47]} 13. Nxe5 {[%clk 0:02:46]}  Bb7 {[%clk 0:02:43]} 14. Nc6 {[%clk 0:02:37]}  Qd7 {[%clk 0:02:32]} 15. Bxc7 {[%clk 0:02:24]}  Qxc7 {[%clk 0:02:33]} 16. Nxb5 {[%clk 0:02:24]}  Qb6 {[%clk 0:02:33]} 17. Qb3 {[%clk 0:02:08]}  Kh8 {[%clk 0:01:37]} 18. Nbxa7 {[%clk 0:02:06]}  Qxb3 {[%clk 0:01:18]} 19. axb3 {[%clk 0:02:07]}  Nd7 {[%clk 0:01:11]} 20. Rfb1 {[%clk 0:01:50]}  Rfe8 {[%clk 0:01:10]} 21. b4 {[%clk 0:01:49]}  Re2 {[%clk 0:01:06]} 22. bxc5 {[%clk 0:01:45]}  Nxc5 {[%clk 0:01:04]} 23. Nb5 {[%clk 0:01:41]}  Bxb2 {[%clk 0:00:56]} 24. Rxa8+ {[%clk 0:01:28]}  Bxa8 {[%clk 0:00:57]} 25. d6 {[%clk 0:01:16]}  Rd2 {[%clk 0:00:47]} 26. Re1 {[%clk 0:01:07]}  Ne6 {[%clk 0:00:39]} 27. Ne5 {[%clk 0:00:53]}  Kg7 {[%clk 0:00:35]} 28. Bxa8 {[%clk 0:00:51]}  Ng5 {[%clk 0:00:27]} 29. Nc4 {[%clk 0:00:39]}  Nh3+ {[%clk 0:00:23]} 30. Kg2 {[%clk 0:00:38]}  Rxf2+ {[%clk 0:00:20]} 31. Kxh3 {[%clk 0:00:38]}  h5 {[%clk 0:00:20]} 32. Nxb2 {[%clk 0:00:37]}  g5 {[%clk 0:00:20]} 33. g4 {[%clk 0:00:31]}  f5 {[%clk 0:00:19]} 34. Kg3 {[%clk 0:00:17]}  Rxb2 {[%clk 0:00:19]} 35. gxf5 {[%clk 0:00:17]}  Rxb5 {[%clk 0:00:18]} 36. d7 {[%clk 0:00:14]}  Rb3+ {[%clk 0:00:17]} 37. Kf2 {[%clk 0:00:10]}  Rd3 {[%clk 0:00:17]} 38. Bc6 {[%clk 0:00:10]}  Kf7 {[%clk 0:00:12]} 39. Re8 {[%clk 0:00:10]} 1-0


[Site "https://www.chess.com"]